bitfinex-derivatives/quotes_ETHF0:USTF0_20260307
["timestamp","ask_amount","ask_price","bid_price","bid_amount"]
[1772914158533,0.86729903,1963.0,1962.3,1.4038513]
[1772914160542,6.60305071,1963.5,1962.3,1.4038513]
[1772914160744,0.82791072,1963.3,1962.3,1.4038513]
[1772914161045,0.82791072,1963.1,1962.3,1.4038513]
[1772914162945,6.60305071,1963.5,1962.3,1.4038513]
[1772914163245,0.82809474,1963.3,1962.3,1.4038513]
[1772914163444,7.30794522,1963.2,1962.3,1.4038513]
[1772914163644,0.82809474,1963.2,1962.3,1.4038513]
[1772914165342,0.83030042,1963.4,1962.5,1.39968658]
[1772914165549,1.34425639,1963.7,1963.1,1.39968658]
[1772914165945,1.34425639,1963.4,1962.7,1.39968658]
[1772914174250,1.34425639,1963.4,1962.4,1.4319297]
[1772914174550,1.37922626,1963.2,1962.4,1.4319297]
[1772914174750,1.37922626,1963.0,1962.4,1.4319297]
[1772914174951,6.676,1963.1,1962.4,1.4319297]
[1772914176458,8.05522626,1963.1,1962.4,1.4319297]
[1772914176653,1.37922626,1963.0,1962.4,1.4319297]
[1772914185160,1.37922626,1962.8,1962.3,0.00416472]
[1772914185354,1.37922626,1962.6,1962.1,1.4319297]
[1772914186462,1.37922626,1962.6,1962.1,1.43573282]
[1772914194271,1.37922626,1962.6,1962.1,0.00380312]
[1772914194460,1.37922626,1962.6,1962.1,1.43573282]
[1772914194664,1.37922626,1962.4,1961.9,1.4319297]
[1772914194864,1.37922626,1962.3,1961.9,1.4319297]
[1772914195265,6.678,1962.4,1961.9,1.4319297]
[1772914195665,6.678,1962.4,1961.9,1.43805457]
[1772914195871,8.05722626,1962.7,1962.1,1.4319297]
[1772914197275,1.37922626,1962.5,1962.1,1.4319297]
[1772914198076,1.37922626,1962.3,1962.0,1.4319297]
[1772914198276,1.37922626,1962.3,1961.9,1.43805457]
[1772914198774,1.37922626,1962.3,1961.9,0.00612487]
[1772914198967,1.37922626,1962.3,1961.7,1.4319297]
[1772914199868,1.37922626,1962.3,1961.7,0.00384853]
[1772914200073,1.37922626,1962.3,1961.7,1.40663949]
[1772914200979,8.08714134,1962.4,1961.7,1.40663949]
[1772914202972,1.35302453,1962.3,1961.7,1.40663949]
[1772914204373,6.678,1962.4,1961.9,1.36374529]
[1772914204782,1.35302453,1962.3,1961.7,1.36759382]
[1772914206881,1.35302453,1962.3,1961.7,0.00384853]
[1772914207579,1.35302453,1962.3,1961.7,1.36759382]
[1772914218691,6.679,1962.2,1961.7,1.36759382]
[1772914218887,8.03202453,1962.2,1961.7,1.36759382]
[1772914219287,1.35302453,1962.1,1961.7,1.36759382]
[1772914221692,6.679,1962.2,1961.7,1.36759382]
[1772914221889,8.03202453,1962.2,1961.7,1.36759382]
[1772914222084,6.679,1962.2,1961.7,1.36759382]
[1772914222289,1.35302453,1962.1,1961.7,1.36759382]
[1772914223093,8.03202453,1962.2,1961.7,1.36759382]
[1772914223388,1.35302453,1962.1,1961.7,1.36759382]
[1772914224995,8.03202453,1962.2,1961.7,1.36759382]
[1772914226390,6.679,1962.2,1961.7,1.36759382]
[1772914226789,8.03202453,1962.2,1961.7,1.36759382]
[1772914227392,1.35302453,1962.1,1961.7,1.36759382]
[1772914237606,8.09734436,1962.2,1961.7,1.36759382]
[1772914237903,1.41834436,1962.1,1961.7,1.36759382]
[1772914241005,4.25135608,1962.5,1961.7,1.36759382]
[1772914241208,1.41834436,1962.5,1961.9,1.33161999]
[1772914243006,6.679,1962.6,1961.9,1.33161999]
[1772914243208,0.00479168,1962.8,1962.1,1.33161999]
[1772914243513,1.41834436,1963.4,1962.4,1.33161999]
[1772914243912,1.41834436,1963.4,1962.6,1.33161999]
[1772914244611,1.42306191,1963.4,1962.6,1.33161999]
[1772914245214,1.42306191,1963.4,1962.6,22.17661999]
[1772914245413,1.42306191,1963.4,1962.7,1.33161999]
[1772914251917,1.41834436,1963.9,1963.0,1.33161999]
[1772914252713,8.09534436,1964.0,1963.3,1.33161999]
[1772914252920,0.00619968,1964.0,1963.3,1.33816311]
[1772914253513,1.41834436,1964.2,1963.3,1.33816311]
[1772914253716,1.41834436,1964.5,1963.3,1.33816311]
[1772914254718,1.42361506,1964.5,1963.3,1.33816311]
[1772914255521,1.42361506,1964.5,1963.6,1.33161999]
[1772914261423,1.42361506,1964.5,1963.8,1.42055208]
[1772914264528,1.42361506,1964.5,1964.0,1.40108123]
[1772914266125,1.42361506,1964.5,1964.2,1.40108123]
[1772914266424,6.92744,1965.2,1964.4,1.40108123]
[1772914267322,6.67656798,1965.2,1964.4,1.40108123]
[1772914268225,7.08276019,1965.2,1964.4,1.40108123]
[1772914268728,7.08276019,1965.2,1963.7,60.261]
[1772914268729,6.67656798,1965.2,1964.6,1.40108123]
[1772914272028,1.81428442,1964.8,1964.0,1.40108123]
[1772914272227,1.81428442,1965.0,1964.1,1.40108123]
[1772914273026,0.25445,1965.1,1964.1,1.40108123]
[1772914273235,6.67556798,1965.2,1964.5,1.40108123]
[1772914275729,1.81428442,1964.8,1964.1,1.40108123]
[1772914275930,8.48628442,1964.8,1964.1,1.40108123]
[1772914276235,8.48628442,1964.8,1963.7,42.61428442]
[1772914276432,6.672,1964.8,1963.8,1.40108123]
[1772914276935,6.672,1964.8,1963.6,1.40108123]
[1772914277136,6.56054847,1964.7,1963.3,0.00654312]
[1772914277333,6.30604847,1964.6,1963.4,1.40108123]
[1772914277532,6.671,1964.5,1963.5,1.40108123]
[1772914282249,6.171,1964.5,1963.5,1.40108123]
[1772914283248,6.672,1964.8,1963.5,1.40108123]
[1772914283448,6.3088806,1964.7,1963.5,1.40108123]
[1772914283749,6.34839071,1965.1,1963.5,1.40108123]
[1772914283750,6.672,1965.0,1963.5,1.40108123]
[1772914283939,6.30962339,1964.9,1963.5,1.40108123]
[1772914284140,0.00356798,1965.2,1963.8,1.40108123]
[1772914284344,0.00356798,1965.2,1964.0,1.40108123]
[1772914287552,0.00356798,1965.2,1964.1,19.47]
[1772914287747,0.00356798,1965.2,1964.2,1.40108123]
[1772914291753,4.24570676,1965.6,1964.3,0.25455]
[1772914292060,0.41824478,1965.6,1964.4,1.40108123]
[1772914292255,5.1943616,1966.0,1964.6,1.31264785]
[1772914292455,6.30562472,1965.8,1964.6,1.31264785]
[1772914292656,6.30562472,1965.7,1964.6,1.31264785]
[1772914292955,0.00471226,1965.7,1964.6,1.31264785]
[1772914293952,0.42140859,1965.7,1964.6,1.31264785]
[1772914294553,0.00471226,1965.7,1964.6,1.31264785]
[1772914296560,1.81310383,1965.4,1964.6,1.31264785]
[1772914298155,0.41236119,1965.7,1964.6,1.31264785]
[1772914298156,0.00471226,1965.7,1965.3,1.32262898]
[1772914298459,0.00471226,1965.7,1965.3,1.32879216]
[1772914301261,0.00471226,1965.7,1964.8,1.15706292]
[1772914302260,0.00471226,1965.7,1964.8,1.16287757]
[1772914309663,6.53847237,1965.6,1964.8,0.00581465]
[1772914309859,6.53847237,1965.6,1964.6,1.16152862]
[1772914309860,6.28490081,1965.5,1964.6,1.16152862]
[1772914310060,0.25438,1965.6,1964.6,1.16152862]
[1772914310260,6.2884366,1965.5,1964.6,1.16152862]
[1772914310463,6.92338,1965.6,1964.6,1.16152862]
[1772914310861,6.92338,1965.6,1964.6,1.16591465]
[1772914311656,6.29249919,1965.5,1964.6,1.16591465]
[1772914311865,6.92338,1965.6,1964.6,1.16591465]
[1772914312061,6.29283168,1965.5,1964.6,1.16591465]
[1772914312256,6.92338,1965.6,1964.6,1.16591465]
[1772914312457,6.29596955,1965.5,1964.6,1.16591465]
[1772914312764,6.29596955,1965.4,1964.6,1.16591465]
[1772914313067,6.92338,1965.6,1964.6,1.16591465]
[1772914313268,6.29759877,1965.5,1964.6,1.16591465]
[1772914313458,6.29759877,1965.4,1964.6,1.16591465]
[1772914313662,11.16908676,1965.6,1964.6,1.16591465]
[1772914313862,0.25441,1965.4,1964.6,1.16591465]
[1772914316164,6.29893488,1965.3,1964.6,0.00438603]
[1772914316369,0.25441,1965.4,1964.6,0.00438603]
[1772914316370,6.29893488,1965.2,1964.6,0.00438603]
[1772914316667,6.669,1965.1,1964.6,0.00438603]
[1772914317170,6.669,1965.1,1964.5,0.99860613]
[1772914317371,6.29941561,1965.0,1964.0,1.08366414]
[1772914317572,6.29941561,1964.9,1964.0,1.08366414]
[1772914317772,6.669,1965.1,1964.0,1.08366414]
[1772914318070,6.29941561,1965.0,1964.0,1.08366414]
[1772914318271,6.29941561,1964.9,1964.0,1.08884641]
[1772914318471,6.669,1965.1,1964.0,1.08884641]
[1772914318673,6.29713002,1965.0,1964.0,1.08884641]
[1772914318969,6.29713002,1964.9,1964.0,1.08884641]
[1772914319170,6.669,1965.1,1964.0,1.08884641]
[1772914319470,6.29498309,1965.0,1964.0,1.08884641]
[1772914319673,6.669,1965.1,1964.0,1.08884641]
[1772914320572,4.51219309,1965.4,1964.0,1.08884641]
[1772914320773,12.96453931,1965.3,1964.0,1.08884641]
[1772914321072,6.67,1965.3,1964.0,1.08884641]
[1772914321273,6.67,1965.2,1964.0,1.08884641]
[1772914324670,6.67,1965.2,1964.2,1.08564804]
[1772914326277,4.26249535,1965.7,1964.2,1.08564804]
[1772914326478,6.67,1965.3,1964.2,1.08564804]
[1772914328073,0.00471226,1965.7,1964.2,1.08564804]
[1772914328277,12.96348807,1965.6,1964.2,1.08564804]
[1772914328477,6.67,1965.6,1964.2,1.08564804]
[1772914330074,6.67,1965.6,1964.4,1.08127679]
[1772914330277,6.29812669,1965.5,1964.4,1.08127679]
[1772914330472,6.67,1965.6,1964.4,1.08127679]
[1772914330671,6.29812669,1965.5,1964.4,1.08127679]
[1772914330872,6.67,1965.6,1964.4,1.08127679]
[1772914331078,6.29812669,1965.5,1964.4,1.08127679]
[1772914331277,6.67,1965.6,1964.4,1.08127679]
[1772914331478,6.30071319,1965.5,1964.4,1.08127679]
[1772914331776,6.67,1965.6,1964.4,1.08127679]
[1772914331978,6.30071319,1965.5,1964.4,1.08127679]
[1772914332173,6.67,1965.6,1964.4,1.08127679]
[1772914332373,6.30091182,1965.5,1964.4,1.08127679]
[1772914332573,6.67,1965.6,1964.4,1.08127679]
[1772914332772,6.30091182,1965.5,1964.4,1.08127679]
[1772914332973,6.67,1965.6,1964.4,1.08127679]
[1772914333178,6.30073815,1965.5,1964.4,1.08127679]
[1772914333379,6.67,1965.6,1964.4,1.08127679]
[1772914333680,6.30178458,1965.5,1964.4,1.08127679]
[1772914333878,6.67,1965.6,1964.4,1.08127679]
[1772914334081,6.30178458,1965.5,1964.4,1.08127679]
[1772914334378,6.67,1965.6,1964.4,1.08127679]
[1772914334679,6.30312038,1965.5,1964.4,1.08127679]
[1772914334878,6.67,1965.6,1964.4,1.08127679]
[1772914335075,6.30312038,1965.5,1964.4,1.08127679]
[1772914335279,6.67,1965.6,1964.4,1.08127679]
[1772914335574,6.67,1965.6,1964.0,0.00518227]
[1772914335575,6.67,1965.6,1964.6,1.07726458]
[1772914345887,0.00471226,1965.7,1964.6,1.07726458]
[1772914346184,6.32521242,1965.6,1964.6,1.07726458]
[1772914346380,6.669,1965.6,1964.6,1.07726458]
[1772914349187,6.33319497,1965.5,1964.6,1.07726458]
[1772914349387,6.669,1965.6,1964.6,1.07726458]
[1772914349589,6.33330494,1965.5,1964.6,1.07726458]
[1772914349790,6.669,1965.6,1964.6,1.07726458]
[1772914349986,6.33330494,1965.5,1964.6,1.07726458]
[1772914350186,6.669,1965.6,1964.6,1.07726458]
[1772914350386,6.33341077,1965.5,1964.6,1.07726458]
[1772914350587,6.669,1965.6,1964.6,1.07726458]
[1772914350884,13.00241077,1965.5,1964.6,1.07726458]
[1772914351094,6.669,1965.5,1964.6,1.07726458]
[1772914351785,6.33524211,1965.4,1964.6,1.07726458]
[1772914351980,6.669,1965.5,1964.6,1.07726458]
[1772914352189,6.33524211,1965.4,1964.6,1.07726458]
[1772914352385,6.669,1965.5,1964.6,1.07726458]
[1772914352590,6.33619843,1965.4,1964.6,1.07726458]
[1772914352789,6.669,1965.5,1964.6,1.07726458]
[1772914353085,6.33619843,1965.4,1964.6,1.07726458]
[1772914353291,6.669,1965.5,1964.6,1.07726458]
[1772914353488,6.33731992,1965.4,1964.6,1.07726458]
[1772914353688,6.669,1965.5,1964.6,1.07726458]
[1772914353895,6.33731992,1965.4,1964.6,1.07726458]
[1772914354093,6.669,1965.5,1964.6,1.07726458]
[1772914354386,6.33775445,1965.4,1964.6,1.07726458]
[1772914354694,6.33775445,1965.3,1964.6,1.07726458]
[1772914354889,6.669,1965.5,1964.6,1.07726458]
[1772914355090,6.33775445,1965.4,1964.6,1.07726458]
[1772914355294,6.33775445,1965.3,1964.6,1.07726458]
[1772914355591,6.669,1965.5,1964.6,1.07726458]
[1772914355793,6.3381395,1965.4,1964.6,1.07726458]
[1772914355993,6.3381395,1965.3,1964.6,1.07726458]
[1772914356192,6.669,1965.5,1964.6,1.07726458]
[1772914356392,6.33846777,1965.4,1964.6,1.07726458]
[1772914356590,6.33846777,1965.3,1964.6,1.07726458]
[1772914356790,6.669,1965.5,1964.6,1.07726458]
[1772914356987,6.33846777,1965.4,1964.6,1.07726458]
[1772914357191,6.33846777,1965.3,1964.6,1.07726458]
[1772914357387,6.669,1965.5,1964.6,1.07726458]
[1772914357593,6.33884649,1965.4,1964.6,1.07726458]
[1772914357793,6.33884649,1965.3,1964.6,1.07726458]
[1772914357994,6.669,1965.5,1964.6,1.07726458]
[1772914358195,6.33884649,1965.4,1964.6,1.07726458]
[1772914358396,6.33884649,1965.3,1964.6,1.07726458]
[1772914358597,6.669,1965.5,1964.6,1.07726458]
[1772914358796,6.33867977,1965.4,1964.6,1.07726458]
[1772914359096,6.33867977,1965.3,1964.6,1.07726458]
[1772914359296,6.669,1965.5,1964.6,1.07726458]
[1772914359497,6.82212283,1965.4,1964.6,1.07726458]
[1772914359694,6.33849931,1965.3,1964.6,1.07726458]
[1772914359894,10.92678309,1965.5,1964.6,1.07726458]
[1772914360095,6.82212283,1965.4,1964.6,1.07726458]
[1772914360294,10.92678309,1965.5,1964.6,1.07726458]
[1772914360295,6.33849931,1965.3,1964.6,1.07726458]
[1772914360496,10.92678309,1965.5,1964.6,1.07726458]
[1772914360701,6.82157367,1965.4,1964.6,1.07726458]
[1772914360902,6.33798896,1965.3,1964.6,1.07726458]
[1772914361102,6.33798896,1965.2,1964.6,1.07726458]
[1772914361303,6.669,1965.1,1964.6,1.07726458]
[1772914362701,4.25778309,1965.5,1964.6,1.07726458]
[1772914362903,6.669,1965.4,1964.6,1.07726458]
[1772914363098,6.337066,1965.3,1964.6,1.07726458]
[1772914363299,6.669,1965.4,1964.6,1.07726458]
[1772914363502,6.33634428,1965.3,1964.6,1.07726458]
[1772914363702,6.669,1965.4,1964.6,1.07726458]
[1772914364002,6.33634428,1965.3,1964.6,1.07726458]
[1772914364203,6.669,1965.4,1964.6,1.07726458]
[1772914364401,6.33597233,1965.3,1964.6,1.07726458]
[1772914364702,6.669,1965.4,1964.6,1.07726458]
[1772914364904,6.33597233,1965.3,1964.6,1.07726458]
[1772914365097,6.669,1965.4,1964.6,1.07726458]
[1772914365294,6.33564448,1965.3,1964.6,1.07726458]
[1772914365498,6.669,1965.4,1964.6,1.07726458]
[1772914365702,6.33552802,1965.3,1964.6,1.07726458]
[1772914365902,6.669,1965.4,1964.6,1.07726458]
[1772914366103,6.33555713,1965.3,1964.6,1.07726458]
[1772914366302,6.669,1965.4,1964.6,1.07726458]
[1772914366503,6.33543805,1965.3,1964.6,1.07726458]
[1772914366700,6.669,1965.4,1964.6,1.07726458]
[1772914366900,6.33543805,1965.3,1964.6,1.07726458]
[1772914367094,6.669,1965.4,1964.6,1.07726458]
[1772914367298,6.33536527,1965.3,1964.6,1.07726458]
[1772914367500,6.669,1965.4,1964.6,1.07726458]
[1772914367801,6.3353979,1965.3,1964.6,1.07726458]
[1772914367995,6.669,1965.4,1964.6,1.07726458]
[1772914368202,6.3353979,1965.3,1964.6,1.07726458]
[1772914368402,6.669,1965.4,1964.6,1.07726458]
[1772914368604,6.33552726,1965.3,1964.6,1.07726458]
[1772914368805,6.669,1965.4,1964.6,1.07726458]
[1772914369004,6.33552726,1965.3,1964.6,1.07726458]
[1772914369202,6.669,1965.4,1964.6,1.07726458]
[1772914369402,6.33572142,1965.3,1964.6,1.07726458]
[1772914369602,6.669,1965.4,1964.6,1.07726458]
[1772914369805,6.33572142,1965.3,1964.6,1.07726458]
[1772914370106,6.669,1965.2,1964.6,1.07726458]
[1772914370703,4.51217309,1965.6,1964.6,1.07726458]
[1772914370909,13.48829227,1965.5,1964.6,1.07726458]
[1772914371102,6.33587538,1965.4,1964.6,1.07726458]
[1772914371304,6.33587538,1965.3,1964.6,1.07726458]
[1772914371606,6.669,1965.5,1964.6,1.07726458]
[1772914371806,6.33591567,1965.4,1964.6,1.07726458]
[1772914372007,6.33591567,1965.3,1964.6,1.07726458]
[1772914372307,6.669,1965.5,1964.6,1.07726458]
[1772914372507,6.3365498,1965.4,1964.6,1.07726458]
[1772914372807,6.3365498,1965.3,1964.6,1.07726458]
[1772914373007,6.669,1965.5,1964.6,1.07726458]
[1772914373204,6.82156874,1965.4,1964.6,1.07726458]
[1772914373405,6.33806001,1965.3,1964.6,1.07726458]
[1772914373703,6.669,1965.5,1964.6,1.07726458]
[1772914373904,6.82173478,1965.4,1964.6,1.07726458]
[1772914374107,6.33823817,1965.3,1964.6,1.07726458]
[1772914374305,6.669,1965.5,1964.6,1.07726458]
[1772914374503,6.82224254,1965.4,1964.6,1.07726458]
[1772914374704,6.33871076,1965.3,1964.6,1.07726458]
[1772914374906,6.669,1965.5,1964.6,1.07726458]
[1772914375108,6.82228987,1965.4,1964.6,1.07726458]
[1772914375408,6.33875445,1965.3,1964.6,1.07726458]
[1772914375608,10.92678309,1965.5,1964.6,1.07726458]
[1772914375909,6.82231781,1965.4,1964.6,1.07726458]
[1772914376206,6.33878085,1965.3,1964.6,1.07726458]
[1772914376405,6.33878085,1965.2,1964.6,1.07726458]
[1772914376598,6.669,1965.1,1964.6,1.07726458]
[1772914387015,6.669,1965.1,1964.5,1.09708326]
[1772914405626,6.33345365,1965.0,1964.3,1.07808805]
[1772914405822,8.48236401,1965.1,1964.3,1.07808805]
[1772914406017,6.3336865,1965.0,1964.3,1.07808805]
[1772914406222,6.669,1965.1,1964.3,1.07808805]
[1772914406425,6.33196313,1965.0,1964.3,1.07808805]
[1772914406616,6.33196313,1965.0,1964.2,40.8]
[1772914406617,4.25778309,1965.3,1964.6,1.07808805]
[1772914406825,13.00029394,1965.2,1964.8,1.07432556]
[1772914407025,6.33129394,1965.1,1964.6,1.07432556]
[1772914407226,6.669,1965.2,1964.6,1.07432556]
[1772914407421,6.33118111,1965.1,1964.6,1.07432556]
[1772914407618,6.669,1965.2,1964.6,1.07432556]
[1772914407825,6.33118111,1965.1,1964.6,1.07432556]
[1772914408022,6.669,1965.2,1964.6,1.07432556]
[1772914408225,6.33118111,1965.1,1964.6,1.07432556]
[1772914408426,6.669,1965.2,1964.6,1.07432556]
[1772914408626,6.33106592,1965.1,1964.6,1.07432556]
[1772914408830,6.669,1965.2,1964.6,1.07432556]
[1772914409131,6.33106592,1965.1,1964.6,1.07432556]
[1772914409428,6.669,1965.2,1964.6,1.07432556]
[1772914409629,6.33097906,1965.1,1964.6,1.07432556]
[1772914409828,6.669,1965.2,1964.6,1.07432556]
[1772914410028,6.33097906,1965.1,1964.6,1.07432556]
[1772914410229,6.669,1965.2,1964.6,1.07432556]
[1772914410530,6.33093792,1965.1,1964.6,1.07432556]
[1772914410827,6.669,1965.2,1964.6,1.07432556]
[1772914411028,6.33083729,1965.1,1964.6,1.07432556]
[1772914411229,6.669,1965.2,1964.6,1.07432556]
[1772914411930,6.33073977,1965.1,1964.3,1.08027053]
[1772914412129,6.33073977,1965.0,1964.3,1.08027053]
[1772914412326,6.669,1964.9,1964.4,1.08027053]
[1772914412531,6.669,1964.8,1964.4,1.08027053]
[1772914412931,6.669,1964.8,1964.3,2.89246645]
[1772914414733,6.669,1964.8,1964.3,1.07910244]
[1772914416433,6.669,1964.8,1964.2,40.8]
[1772914416633,6.669,1964.8,1964.1,2.89247422]
[1772914416829,6.669,1964.8,1964.1,1.81336401]
[1772914417030,6.669,1964.8,1964.2,1.0790793]
[1772914417836,6.669,1964.8,1964.0,1.08426157]
[1772914418429,6.669,1964.8,1964.0,41.88426157]
[1772914418631,6.669,1964.8,1964.0,1.08426157]
[1772914419436,6.669,1964.8,1963.9,1.07424071]
[1772914420439,6.669,1964.8,1963.9,1.07825326]
[1772914424840,1.81336401,1964.9,1963.9,1.07825326]
[1772914425043,6.67,1964.8,1964.4,1.07041376]
[1772914425943,6.67,1964.8,1964.3,1.07041376]
[1772914426744,6.67,1964.8,1964.0,1.07041376]
[1772914430548,6.67,1964.8,1964.2,1.07329478]
[1772914432746,6.67,1964.8,1963.9,0.80333823]
[1772914432948,6.67,1964.8,1963.9,2.61670224]
[1772914433150,6.67,1964.8,1964.0,0.80035973]
[1772914434752,6.67,1964.8,1963.9,2.61706464]
[1772914435953,6.67,1964.8,1964.0,0.79968808]
[1772914438256,6.67,1964.8,1963.9,0.80355966]
[1772914438452,8.13596745,1964.7,1963.9,0.00401255]
[1772914438648,1.81336401,1964.5,1963.6,0.79761276]
[1772914438852,6.671,1964.4,1963.6,0.79761276]
[1772914439660,6.671,1964.4,1963.6,0.80219101]
[1772914442154,4.51228309,1964.8,1963.9,1.81336401]
[1772914442360,12.99455166,1964.7,1964.0,0.80080686]
[1772914442664,6.671,1964.7,1964.0,0.80080686]
[1772914451269,6.671,1964.7,1963.6,1.8189317]
[1772914451270,6.671,1964.7,1963.9,0.79687535]
[1772914451669,6.32730723,1964.6,1963.9,0.79687535]
[1772914451867,6.671,1964.7,1963.9,0.79687535]
[1772914452066,7.06543059,1964.6,1963.6,0.8014536]
[1772914452270,6.81092059,1964.5,1963.6,0.8014536]
[1772914452469,10.92878309,1964.7,1962.7,10.63300199]
[1772914452470,0.25455,1964.3,1963.0,0.79687535]
[1772914452674,13.48256137,1964.2,1963.0,0.79687535]
[1772914452970,12.99792805,1964.1,1963.1,0.79449953]
[1772914453166,6.671,1964.1,1963.1,0.79449953]
[1772914453563,6.67470746,1964.1,1963.1,0.79858058]
[1772914456472,6.67470746,1964.1,1963.1,0.00408105]
[1772914456773,8.12751102,1964.0,1963.1,0.00408105]
[1772914457073,1.81435345,1964.0,1963.1,0.00408105]
[1772914457966,6.67470746,1964.1,1963.1,0.00408105]
[1772914458169,6.31045957,1964.0,1963.1,0.00408105]
[1772914458373,6.67470746,1964.1,1963.1,0.00408105]
[1772914458571,6.3075593,1964.0,1963.1,0.00408105]
[1772914458775,6.67470746,1964.1,1963.1,0.00408105]
[1772914458971,6.3075593,1964.0,1963.1,0.00408105]
[1772914459173,6.67470746,1964.1,1963.1,0.00408105]
[1772914459372,6.30515756,1964.0,1963.1,0.00408105]
[1772914459573,6.67470746,1964.1,1963.1,0.00408105]
[1772914459770,6.30515756,1964.0,1963.1,0.00408105]
[1772914459970,6.67470746,1964.1,1963.1,0.00408105]
[1772914460170,6.30515756,1964.0,1963.1,0.00408105]
[1772914460371,6.67470746,1964.1,1963.1,0.00408105]
[1772914460571,6.30331544,1964.0,1963.1,0.00408105]
[1772914460771,6.67470746,1964.1,1963.1,0.00408105]
[1772914460972,6.30331544,1964.0,1963.1,0.00408105]
[1772914461174,6.67470746,1964.1,1963.1,0.00408105]
[1772914461375,6.3019126,1964.0,1963.1,0.00408105]
[1772914461576,6.67470746,1964.1,1963.1,0.00408105]
[1772914461881,6.3019126,1964.0,1963.1,0.00408105]
[1772914462079,6.67470746,1964.1,1963.1,0.00408105]
[1772914462280,6.3019126,1964.0,1963.1,0.00408105]
[1772914462476,6.67470746,1964.1,1963.1,0.00408105]
[1772914462676,6.30069398,1964.0,1963.1,0.00408105]
[1772914462877,6.67470746,1964.1,1963.1,0.00408105]
[1772914463078,6.30521226,1964.0,1963.1,0.00408105]
[1772914463277,6.67470746,1964.1,1963.1,0.00408105]
[1772914463480,6.30407159,1964.0,1963.1,0.00408105]
[1772914463676,6.67470746,1964.1,1963.0,0.78687962]
[1772914463986,6.30407159,1964.0,1963.0,0.78687962]
[1772914464180,6.67470746,1964.1,1963.0,0.78687962]
[1772914464380,6.30326313,1964.0,1963.0,0.78687962]
[1772914464582,6.67470746,1964.1,1963.0,0.78687962]
[1772914464782,6.30326313,1964.0,1963.0,0.79223467]
[1772914464983,6.67470746,1964.1,1963.0,0.79223467]
[1772914465282,6.30326313,1964.0,1963.0,0.79223467]
[1772914465482,6.67470746,1964.1,1963.0,0.79223467]
[1772914465686,6.30262461,1964.0,1963.0,0.79223467]
[1772914465988,6.67470746,1964.1,1963.0,0.79223467]
[1772914466175,6.30262461,1964.0,1963.0,0.79223467]
[1772914466381,6.67470746,1964.1,1963.0,0.79223467]
[1772914466582,6.30227583,1964.0,1963.0,0.79223467]
[1772914466777,6.67470746,1964.1,1963.0,0.79223467]
[1772914466982,6.30227583,1964.0,1963.0,0.79223467]
[1772914467182,6.67470746,1964.1,1963.0,0.79223467]
[1772914467384,6.30219616,1964.0,1963.0,0.79223467]
[1772914467583,6.67470746,1964.1,1963.0,0.79223467]
[1772914467778,6.30219616,1964.0,1963.0,0.79223467]
[1772914467983,6.67470746,1964.1,1963.0,0.79223467]
[1772914468182,6.30219616,1964.0,1963.0,0.79223467]
[1772914468386,6.67470746,1964.1,1963.0,0.79223467]
[1772914468589,6.30239882,1964.0,1963.0,0.79223467]
[1772914468787,6.67470746,1964.1,1963.0,0.79223467]
[1772914468989,6.30239882,1964.0,1963.0,0.79223467]
[1772914469288,6.67470746,1964.1,1963.0,0.79223467]
[1772914469489,6.30216809,1964.0,1963.0,0.79223467]
[1772914469684,6.67470746,1964.1,1963.0,0.79223467]
[1772914469886,6.30216809,1964.0,1963.0,0.79223467]
[1772914470088,6.67470746,1964.1,1963.0,0.79223467]
[1772914470288,6.30216809,1964.0,1963.0,0.79223467]
[1772914470484,6.67470746,1964.1,1963.0,0.79223467]
[1772914470685,6.30220191,1964.0,1963.0,0.79223467]
[1772914470885,6.67470746,1964.1,1963.0,0.79223467]
[1772914471091,6.30214482,1964.0,1963.0,0.79223467]
[1772914471292,6.67470746,1964.1,1963.0,0.79223467]
[1772914471491,6.30226534,1964.0,1963.0,0.79223467]
[1772914471690,6.67470746,1964.1,1963.0,0.79223467]
[1772914471989,6.30226534,1964.0,1963.0,0.79223467]
[1772914472191,6.67470746,1964.1,1963.0,0.79223467]
[1772914472490,6.30270601,1964.0,1963.0,0.79223467]
[1772914472689,6.67470746,1964.1,1963.0,0.79223467]
[1772914472893,6.30279297,1964.0,1963.0,0.79223467]
[1772914473188,6.67470746,1964.1,1963.0,0.79223467]
[1772914473389,6.30386942,1964.0,1963.0,0.79223467]
[1772914473581,6.30386942,1963.9,1963.0,0.79223467]
[1772914473787,6.674,1963.8,1963.0,0.79223467]
[1772914474992,6.674,1963.8,1963.0,0.00535505]
[1772914474993,6.92862,1963.8,1963.0,0.00535505]
[1772914475188,6.92862,1963.8,1962.8,0.79097635]
[1772914476081,6.92862,1963.8,1962.8,0.79576081]
[1772914476993,6.30932402,1963.7,1962.8,0.79576081]
[1772914477188,0.41738361,1963.7,1962.8,0.79576081]
[1772914477388,6.92862,1963.8,1962.8,0.79576081]
[1772914477589,6.92862,1963.8,1962.8,0.00478446]
[1772914477590,8.1257013,1963.7,1962.8,0.00478446]
[1772914477790,6.31134785,1963.6,1962.8,0.00478446]
[1772914478694,6.31134785,1963.6,1962.8,0.79515356]
[1772914481296,6.31134785,1963.5,1962.8,0.79515356]
[1772914481598,6.675,1963.4,1962.8,0.79515356]
[1772914489301,6.675,1963.4,1962.8,0.79554747]
[1772914499907,4.6902945,1963.7,1962.8,0.79554747]
[1772914500103,13.03042239,1963.6,1962.8,0.79554747]
[1772914500304,6.35542239,1963.5,1962.8,0.79554747]
[1772914500503,6.675,1963.6,1962.8,0.79554747]
[1772914501202,4.27278836,1963.8,1962.9,1.81435345]
[1772914501406,13.02165213,1963.7,1963.0,0.79130178]
[1772914501704,6.675,1963.7,1963.0,0.79130178]
[1772914510513,6.675,1963.7,1963.2,0.774661]
[1772914510712,1.81955099,1964.1,1963.2,0.774661]
[1772914510909,13.01237809,1964.0,1963.2,0.774661]
[1772914511212,6.675,1964.0,1963.6,0.77346137]
[1772914511812,6.675,1964.0,1963.2,0.77346137]
[1772914512008,6.675,1964.0,1963.4,0.77346137]
[1772914517807,6.675,1964.0,1963.6,0.76820733]
[1772914524917,6.675,1964.0,1963.4,0.76315477]
[1772914533831,6.675,1964.0,1963.0,0.77205555]
[1772914534031,1.81584353,1963.9,1963.0,0.77205555]
[1772914534727,1.81584353,1963.9,1962.8,1.82062799]
[1772914534728,1.81584353,1963.5,1962.8,0.00478446]
[1772914535027,6.673,1963.4,1962.9,0.77164922]
[1772914536228,6.673,1963.4,1962.8,2.59227721]
[1772914536529,6.673,1963.4,1962.8,0.77643368]
[1772914547133,6.673,1963.4,1962.8,0.77660509]
[1772914548239,0.25461,1963.9,1962.9,0.77182063]